bitfinex/quotes_SOLUSD_20260108
["timestamp","ask_amount","ask_price","bid_price","bid_amount"]
[1767877890488,0.69642819,134.2,134.17,8.16620651]
[1767877891091,0.69642819,134.2,134.16,11.72535365]
[1767877891790,0.69642819,134.2,134.17,0.71300528]
[1767877900602,0.69642819,134.2,134.17,8.16621741]
[1767877906402,5.00172506,134.19,134.17,8.16621741]
[1767877906702,0.69642819,134.2,134.17,8.16621741]
[1767877906879,0.69269819,134.18,134.17,7.45321213]
[1767877907079,0.6626982,134.18,134.17,7.45321213]
[1767877907299,0.63269821,134.18,134.17,7.45321213]
[1767877908894,11.20957,134.22,134.17,8.14678752]
[1767877909094,5.00401626,134.21,134.17,8.14678752]
[1767877909292,5.70515096,134.2,134.17,8.14678752]
[1767877909598,5.00401626,134.19,134.17,8.14678752]
[1767877911589,5.00401626,134.19,134.17,0.69357539]
[1767877912410,5.00401626,134.19,134.17,8.14680096]
[1767877913006,5.2039852,134.19,134.17,8.14680096]
[1767877913206,5.00401626,134.18,134.17,7.64680096]
[1767877913894,5.00401626,134.18,134.17,0.19357539]
[1767877914597,5.00401626,134.18,134.17,7.64680636]
[1767877914809,0.19996894,134.19,134.17,7.64680636]
[1767877915700,0.7011347,134.21,134.18,0.69357539]
[1767877915905,5.70220794,134.2,134.18,0.69357539]
[1767877916113,5.007239,134.19,134.18,0.69357539]
[1767877916814,0.7011347,134.21,134.18,3.55882025]
[1767877917393,0.7011347,134.21,134.19,7.45212012]
[1767877918298,0.7011347,134.21,134.18,7.53926279]
[1767877920318,0.7011347,134.21,134.18,0.08687649]
[1767877923014,0.7011347,134.21,134.16,13.70687649]
[1767877923216,0.71754436,134.19,134.15,0.08687649]
[1767877923395,0.71754436,134.19,134.16,0.08687649]
[1767877923797,0.71754436,134.19,134.14,7.54152274]
[1767877923798,0.71754436,134.18,134.14,7.54152274]
[1767877923995,0.71754436,134.18,134.14,0.08687649]
[1767877924395,0.71754436,134.18,134.13,11.01400937]
[1767877924715,0.71278919,134.15,134.12,7.54284614]
[1767877924898,0.71278919,134.15,134.12,7.45596965]
[1767877924899,0.6827892,134.15,134.12,7.45596965]
[1767877925102,0.6827892,134.15,134.11,7.54344199]
[1767877925593,0.6827892,134.15,134.12,0.11687648]
[1767877927600,0.6827892,134.15,134.12,7.57255688]
[1767877930124,0.6827892,134.15,134.11,7.57318167]
[1767877930303,0.6827892,134.15,134.12,7.45589906]
[1767877930513,0.6827892,134.15,134.12,11.13159579]
[1767877933025,0.71278919,134.14,134.11,7.57332199]
[1767877933204,0.71278919,134.14,134.11,11.13214224]
[1767877935231,0.6827892,134.14,134.11,11.13214224]
[1767877936639,0.6827892,134.14,134.11,7.57332199]
[1767877936809,0.6827892,134.14,134.11,11.13214224]
[1767877938034,0.6827892,134.14,134.12,3.55882025]
[1767877938828,0.71278919,134.15,134.12,11.1616541]
[1767877942616,0.71278919,134.15,134.12,0.14687647]
[1767877945428,0.71278919,134.15,134.11,11.16199739]
[1767877945734,0.71278919,134.15,134.12,0.14687647]
[1767877945934,0.71278919,134.15,134.12,11.16166217]
[1767877946838,0.71278919,134.15,134.12,7.60284192]
[1767877947029,0.71278919,134.15,134.12,11.16166217]
[1767877949954,0.71278919,134.16,134.12,0.14687647]
[1767877950537,2.9921105,134.16,134.12,0.14687647]
[1767877950744,0.71278919,134.15,134.12,0.14687647]
[1767877951548,0.71278919,134.15,134.11,9.73588681]
[1767877951756,0.71278919,134.15,134.11,9.88276328]
[1767877952046,0.71278919,134.16,134.13,0.14687647]
[1767877953149,0.71278919,134.16,134.12,2.42619778]
[1767877953763,0.71278919,134.16,134.13,7.45545366]
[1767877975369,0.68257078,134.17,134.14,0.14687647]
[1767877975566,0.68257078,134.18,134.15,2.42619778]
[1767877977537,0.68257078,134.18,134.15,9.88030471]
[1767877980174,0.68257078,134.18,134.15,7.6009834]
[1767877980469,0.68257078,134.18,134.15,9.88030471]
[1767877981364,0.68257078,134.19,134.16,9.87992002]
[1767877985167,0.68257078,134.19,134.17,2.27932131]
[1767877985785,0.68257078,134.19,134.16,9.87992002]
[1767877986880,0.68257078,134.19,134.16,7.60059871]
[1767877987089,0.68257078,134.19,134.16,9.87992002]
[1767877996685,0.68257078,134.19,134.16,9.73304355]
[1767877998196,0.68257078,134.19,134.16,9.87992002]
[1767877998404,0.68257078,134.19,134.16,9.73304355]
[1767878000207,0.68257078,134.19,134.17,2.27932131]
[1767878005410,0.68257078,134.19,134.16,7.60059871]
[1767878005595,0.68257078,134.19,134.17,2.27932131]
[1767878010615,0.68257078,134.19,134.17,3.55833395]
[1767878014744,0.69582331,134.21,134.17,7.60004627]
[1767878015054,5.56062174,134.2,134.18,3.55833395]
[1767878015217,0.69582331,134.2,134.18,3.55833395]
[1767878021746,0.69582331,134.21,134.18,3.70521042]
[1767878021949,0.69582331,134.21,134.18,11.01085752]
[1767878022328,0.69582331,134.21,134.18,3.55833395]
[1767878031464,0.69582331,134.21,134.19,3.55833395]
[1767878040963,0.69582331,134.21,134.18,11.15773465]
[1767878041171,0.69582331,134.21,134.18,3.70521042]
[1767878041491,0.69582331,134.19,134.14,11.15982632]
[1767878041649,0.69582331,134.19,134.14,11.16007737]
[1767878041650,0.69582331,134.17,134.14,11.16007737]
[1767878043545,0.69582331,134.17,134.14,3.55833395]
[1767878043749,0.69582331,134.17,134.13,7.60214707]
[1767878043949,0.67141021,134.13,134.1,0.14687647]
[1767878044160,0.67141021,134.13,134.09,11.16265752]
[1767878044368,0.67141021,134.13,134.09,11.16260304]
[1767878044756,0.67141021,134.13,134.1,7.45707822]
[1767878045452,0.67141021,134.13,134.1,7.60395469]
[1767878046754,0.67141021,134.13,134.11,3.55833395]
[1767878051081,0.67141021,134.13,134.1,11.16228864]
[1767878052385,0.67141021,134.13,134.1,7.60395469]
[1767878052686,0.67141021,134.13,134.1,3.70521042]
[1767878061291,0.69570607,134.12,134.09,3.55833395]
[1767878061478,0.69570607,134.11,134.06,0.14687647]
[1767878061683,0.69570607,134.11,134.07,3.70521042]
[1767878062376,0.69570607,134.1,134.07,3.55833395]
[1767878063169,0.69570607,134.1,134.06,0.14687647]
[1767878063385,0.69570607,134.1,134.07,3.55833395]
[1767878065674,0.69570607,134.09,134.07,3.55833395]
[1767878065875,0.69570607,134.09,134.06,3.55833395]
[1767878067178,0.69570607,134.09,134.07,3.55833395]
[1767878067778,0.69570607,134.06,134.04,0.2]
[1767878068490,0.69570607,134.06,134.04,3.75833395]
[1767878068798,0.69570607,134.06,134.04,0.2]
[1767878071086,0.69570607,134.05,134.04,0.2]
[1767878071982,0.69570607,134.05,134.03,0.2]
[1767878074389,0.69570607,134.05,134.03,2.48285996]
[1767878077888,0.70441763,134.06,134.04,2.28285996]
[1767878081693,0.70441763,134.06,134.03,0.54687647]
[1767878081993,0.70441763,134.06,134.03,2.82973643]
[1767878082700,0.70441763,134.06,134.03,16.44973643]
[1767878087020,8.16370432,134.07,134.04,0.34687647]
[1767878087208,0.70441763,134.06,134.04,2.28285996]
[1767878087400,0.70441763,134.06,134.03,16.44973643]
[1767878088119,0.70441763,134.06,134.03,14.16687647]
[1767878089402,0.70441763,134.06,134.03,16.44973643]
[1767878089602,0.70441763,134.06,134.03,14.16687647]
[1767878095705,0.67441763,134.06,134.03,14.16687647]
[1767878096306,0.67441763,134.06,134.03,13.82]
[1767878096623,0.67441763,134.06,134.03,14.19687647]
[1767878098826,0.67441763,134.06,134.03,13.82]
[1767878099321,0.64441763,134.06,134.03,13.82]
[1767878100128,0.64441763,134.06,134.03,0.2]
[1767878100323,0.64441763,134.06,134.03,13.82]
[1767878100530,0.64441763,134.06,134.03,0.2]
[1767878102514,0.65668908,134.07,134.04,0.40687647]
[1767878103220,0.65668908,134.07,134.03,8.06784793]
[1767878103537,0.65668908,134.06,134.03,0.2]
[1767878106932,0.65668908,134.06,134.03,0.60687647]
[1767878107438,0.65668908,134.06,134.03,0.2]
[1767878107644,0.65668908,134.06,134.03,0.60687647]
[1767878108154,0.65462927,134.08,134.05,0.40687647]
[1767878108441,0.65462927,134.1,134.07,2.68973643]
[1767878109040,7.45599432,134.13,134.08,2.28285996]
[1767878109240,5.50716821,134.12,134.09,16.30973643]
[1767878109446,0.65462927,134.12,134.09,16.30973643]
[1767878109743,0.65462927,134.13,134.1,0.40687647]
[1767878110825,0.65462927,134.13,134.1,2.68973643]
[1767878111237,0.65462927,134.13,134.1,0.40687647]
[1767878117341,0.65462927,134.13,134.1,2.68973643]
[1767878117745,8.10973037,134.14,134.11,0.40687647]
[1767878118256,8.10924359,134.15,134.11,0.40687647]
[1767878118549,8.10924359,134.15,134.12,0.40687647]
[1767878119347,8.10954785,134.14,134.11,0.40687647]
[1767878120048,0.65462927,134.13,134.1,2.68973643]
[1767878120421,0.65462927,134.13,134.1,0.40687647]
[1767878120629,0.65462927,134.13,134.1,16.30973643]
[1767878121947,7.45491858,134.14,134.11,0.40687647]
[1767878122155,0.65462927,134.13,134.1,2.68973643]
[1767878122329,0.65462927,134.13,134.1,16.30973643]
[1767878126959,7.45491858,134.14,134.11,0.40687647]
[1767878127350,0.65462927,134.14,134.11,0.40687647]
[1767878131777,8.10925661,134.15,134.12,0.40687647]
[1767878132058,0.65462927,134.15,134.12,0.40687647]
[1767878133572,0.65462927,134.15,134.12,3.96819227]
[1767878135366,0.65462927,134.15,134.12,0.40687647]
[1767878136158,0.65462927,134.15,134.11,11.42463365]
[1767878136469,0.66370529,134.14,134.11,3.96819227]
[1767878136772,0.66370529,134.13,134.1,17.58819227]
[1767878137476,0.66370529,134.13,134.1,25.0452781]
[1767878137648,0.16370529,134.13,134.11,0.6646469]
[1767878138553,0.16370529,134.13,134.1,17.8459627]
[1767878140780,0.16370529,134.13,134.1,25.30299393]
[1767878141251,0.16370529,134.13,134.1,11.68299393]
[1767878141584,0.16370529,134.13,134.1,25.30299393]
[1767878143889,0.16370529,134.13,134.1,11.68299393]
[1767878144055,0.16370529,134.13,134.1,25.30299393]
[1767878145679,0.16370529,134.13,134.1,17.8459627]
[1767878148061,0.16370529,134.13,134.1,25.30308285]
[1767878149766,0.16370529,134.13,134.11,0.6646469]
[1767878151477,18.63523136,134.16,134.11,0.6646469]
[1767878151684,0.66370529,134.14,134.11,0.6646469]
[1767878152584,0.66370529,134.14,134.1,25.30308285]
[1767878154366,7.45460353,134.15,134.1,25.30308285]
[1767878154367,5.54632724,134.13,134.1,25.30308285]
[1767878154666,0.66370529,134.13,134.1,25.30308285]
[1767878155080,0.66370529,134.13,134.11,0.6646469]
[1767878157087,0.66370529,134.14,134.11,0.6646469]
[1767878162389,0.66370529,134.14,134.11,4.2259627]
[1767878162595,0.66370529,134.14,134.11,0.6646469]
[1767878162788,0.66370529,134.14,134.11,4.2259627]
[1767878164395,0.7065824,134.11,134.07,8.13923616]
[1767878164694,0.7065824,134.1,134.07,8.13923616]
[1767878165069,5.32124432,134.09,134.07,8.13923616]
[1767878165296,0.7065824,134.1,134.07,8.13923616]
[1767878165489,5.3185184,134.09,134.07,8.13923616]
[1767878165697,0.7065824,134.1,134.07,8.13923616]
[1767878165883,5.31809833,134.09,134.07,11.70055196]
[1767878166084,0.7065824,134.1,134.07,11.70055196]
[1767878166284,5.31809649,134.09,134.07,11.70055196]
[1767878166489,0.7065824,134.1,134.07,11.70055196]
[1767878166696,5.31621518,134.09,134.07,4.24202986]
[1767878166886,5.31621518,134.08,134.07,0.68071406]
[1767878167088,5.28621518,134.08,134.07,0.68071406]
[1767878167395,0.7065824,134.09,134.06,13.62]
[1767878167598,0.7065824,134.09,134.05,0.68071406]
[1767878167778,0.7065824,134.09,134.05,14.30071406]
[1767878168300,0.7065824,134.08,134.04,14.30071406]
[1767878168497,0.7065824,134.08,134.05,0.68071406]
[1767878169501,0.7065824,134.08,134.04,25.32203548]
[1767878170300,0.7065824,134.08,134.04,21.76071968]
[1767878174498,0.7065824,134.08,134.04,25.32203548]
[1767878176190,0.67658238,134.08,134.04,25.32203548]
[1767878177977,0.67658238,134.08,134.05,11.02110272]
[1767878178605,0.67658238,134.08,134.05,11.70181678]
[1767878179193,0.67658238,134.08,134.05,7.45978692]
[1767878179393,0.67658238,134.08,134.05,11.02110272]
[1767878179600,0.67658238,134.08,134.05,8.14050098]
[1767878179791,0.67658238,134.08,134.05,11.70181678]
[1767878180905,0.67658238,134.08,134.05,3.5613158]
[1767878181107,0.67658238,134.08,134.04,25.32220383]
[1767878181492,0.7065824,134.07,134.04,21.76088803]
[1767878182112,0.7065824,134.07,134.05,7.45989353]
[1767878182495,0.6765824,134.07,134.05,7.45989353]
[1767878183799,7.45890343,134.07,134.03,0.88071406]
[1767878184000,11.02021923,134.07,134.03,13.82]
[1767878184505,0.7065824,134.06,134.03,0.2]
[1767878184710,0.7065824,134.06,134.02,0.2]
[1767878184711,0.7065824,134.04,134.02,0.2]
[1767878184888,0.7065824,134.03,134.02,0.2]
[1767878185592,0.7065824,134.03,134.01,0.2]
[1767878185905,0.7065824,134.03,134.0,0.2]
[1767878185906,0.7065824,134.02,134.0,0.2]
[1767878186594,0.52127569,134.01,133.99,0.2]
[1767878188509,0.70472934,134.0,133.99,1e-08]
[1767878188708,4.26604514,134.0,133.99,1e-08]
[1767878188901,0.32511022,133.99,133.98,1e-08]
[1767878189410,0.7065824,134.0,133.98,1e-08]
[1767878189808,0.67658241,134.0,133.98,1e-08]
[1767878190001,0.64658242,134.0,133.98,1e-08]
[1767878190610,11.02426844,134.0,133.98,1e-08]
[1767878192126,0.7065824,133.99,133.98,1e-08]
[1767878194226,0.6065824,133.98,133.96,0.03345888]
[1767878194522,0.099,133.96,133.95,0.2]
[1767878195098,0.10650657,133.95,133.92,0.2]
[1767878195297,0.1065824,133.95,133.92,0.2]
[1767878195502,0.1065824,133.95,133.92,0.89269073]
[1767878195925,2.39172529,133.95,133.92,0.2]
[1767878196222,2.28514289,133.93,133.92,1e-08]
[1767878196424,2.38414289,133.94,133.92,1e-08]
[1767878196720,7.57309359,133.93,133.92,1e-08]
[1767878196910,7.5430936,133.93,133.92,1e-08]
[1767878199321,9.82823649,133.93,133.92,1e-08]
[1767878200509,9.75172991,133.93,133.92,1e-08]
[1767878200710,7.54316943,133.93,133.92,1e-08]
[1767878200933,9.82831232,133.93,133.92,1e-08]
[1767878201220,7.46658702,133.93,133.92,1e-08]
[1767878201809,7.54286967,133.94,133.92,1e-08]
[1767878202127,9.82801256,133.94,133.92,1e-08]
[1767878202756,9.75143015,133.94,133.92,0.69269074]
[1767878202927,7.46561941,133.95,133.92,0.69269074]
[1767878203318,23.51248289,133.96,133.92,0.69269074]
[1767878203629,23.37032132,133.96,133.92,0.69269074]
[1767878203846,21.08517843,133.96,133.93,0.69269073]
[1767878204015,9.82614279,133.97,133.93,0.69269073]
[1767878204633,0.07658241,133.96,133.93,0.69269073]
[1767878205505,7.54065031,133.98,133.94,0.69269073]
[1767878205711,21.17995802,133.99,133.95,2.97783362]
[1767878206131,21.17995802,133.99,133.95,0.69269073]
[1767878207728,23.46510091,133.99,133.95,0.69269073]
[1767878208436,9.82510091,133.99,133.95,0.69269073]
[1767878208619,28.48320972,133.99,133.95,0.69269073]
[1767878210030,7.53995802,133.99,133.96,0.69269073]
[1767878210254,7.53995802,133.99,133.95,2.97783362]
[1767878210609,7.53995802,133.99,133.95,0.69269073]
[1767878210815,7.53995802,133.99,133.95,2.97783362]
[1767878212241,7.53995802,133.99,133.96,0.69269073]
[1767878212534,0.07658241,133.98,133.94,0.69269073]
[1767878212855,0.07658241,133.96,133.93,0.69269073]
[1767878213030,2.3617253,133.96,133.92,0.69269074]
[1767878213228,0.07658241,133.96,133.92,0.69269074]
[1767878213541,0.36090555,133.97,133.93,0.69269073]
[1767878213729,2.64604844,133.97,133.93,0.69269073]
[1767878214820,7.46491489,133.96,133.93,0.69269073]
[1767878219548,2.3617253,133.95,133.92,1e-08]
[1767878220124,0.07658241,133.95,133.92,0.69269074]
[1767878221242,26.20378454,133.96,133.92,0.69269074]
[1767878221443,7.5414973,133.96,133.93,0.69269073]
[1767878223344,5.37221279,133.95,133.93,0.69269073]
[1767878223529,7.5414973,133.96,133.93,0.69269073]
[1767878223728,5.37312083,133.95,133.93,0.69269073]
[1767878223928,7.5414973,133.96,133.93,0.69269073]
[1767878224152,5.37500847,133.95,133.93,0.69269073]
[1767878224338,7.5414973,133.96,133.93,0.69269073]
[1767878224537,12.84414456,133.95,133.93,0.69269073]
[1767878224735,7.46550775,133.95,133.92,0.71002726]
[1767878225731,9.82690792,133.96,133.92,0.71002726]
[1767878225930,5.38206036,133.95,133.92,0.71002726]
[1767878226127,7.54176503,133.96,133.92,0.71002726]
[1767878226334,5.38621617,133.95,133.92,0.71002726]
[1767878226538,7.54176503,133.96,133.92,0.71002726]
[1767878226539,5.38621617,133.94,133.92,0.71002726]
[1767878226740,7.54176503,133.96,133.92,0.71002726]
[1767878226944,5.38576802,133.95,133.92,0.71002726]
[1767878227134,5.38576802,133.94,133.93,0.71002725]
[1767878230754,5.38576802,133.94,133.92,0.71002726]
[1767878230953,5.38576802,133.93,133.92,1e-08]
[1767878231155,5.46235043,133.93,133.9,0.2]
[1767878231345,15.21463788,133.92,133.9,0.2]
[1767878231657,5.38576802,133.91,133.9,0.2]
[1767878232033,5.46235043,133.91,133.9,1e-08]
[1767878232236,5.46235043,133.91,133.87,0.67590388]
[1767878232237,7.74749332,133.91,133.87,0.67590388]
[1767878232430,21.10714456,133.92,133.87,0.67590388]
[1767878232431,7.67091091,133.9,133.87,0.67590388]
[1767878232651,39.77500596,133.92,133.84,0.67590388]
[1767878232652,7.67091091,133.89,133.84,0.67590388]
[1767878232841,5.38576802,133.88,133.85,0.67590388]
[1767878233038,5.38576802,133.87,133.86,0.67590388]
[1767878233241,5.40755456,133.87,133.86,0.67590388]
[1767878233451,8.19060859,133.92,133.86,2.28514289]
[1767878233753,0.72324208,133.93,133.9,2.28514289]
[1767878233939,0.72324208,133.94,133.86,26.14672044]
[1767878234143,0.72324208,133.94,133.91,2.28514289]
[1767878234851,2.28514289,133.96,133.93,2.28514289]
[1767878234852,8.18830308,133.96,133.93,2.28514289]
[1767878235029,0.72324208,133.95,133.87,0.28432314]
[1767878235229,0.72324208,133.95,133.92,2.28514289]
[1767878237057,0.72324208,133.95,133.93,2.28514289]
[1767878238351,8.1877696,133.97,133.94,2.28514289]
[1767878238764,0.72324208,133.97,133.95,2.28514289]
[1767878240649,0.72324208,133.98,133.95,2.28514289]
[1767878240963,0.72324208,134.0,133.97,2.28514289]
[1767878241154,0.72324208,134.0,133.98,2.28514289]
[1767878242363,7.46230175,134.01,133.97,2.28514289]
[1767878242364,8.18554383,134.01,133.97,2.28514289]
[1767878242533,8.18554383,134.01,133.98,2.28514289]
[1767878242534,0.72324208,134.01,133.98,2.28514289]
[1767878242740,0.72324208,134.01,133.94,18.6642174]
[1767878242741,0.72324208,134.01,133.99,2.28514289]
[1767878242933,0.72324208,134.02,133.99,2.28514289]
[1767878243134,0.72324208,134.03,134.0,2.28514289]
[1767878243361,8.18371128,134.04,134.01,2.28514289]
[1767878243763,8.18371128,134.04,134.0,2.28514289]
[1767878246159,0.72324208,134.03,134.0,2.28514289]
[1767878246362,0.72324208,134.03,133.99,2.28514289]
[1767878246569,0.72324208,134.03,133.97,7.46421983]
[1767878246740,0.72324208,134.03,133.99,2.28514289]
[1767878247558,0.72324208,134.03,134.0,2.28514289]
[1767878247777,0.72324208,134.03,133.97,7.46415315]
[1767878248059,0.72324208,134.03,134.0,2.28514289]
[1767878248455,8.18436757,134.03,133.99,2.28514289]
[1767878250764,8.18436757,134.03,134.0,2.28514289]
[1767878250964,0.72324208,134.02,133.99,2.28514289]
[1767878253560,8.18505589,134.02,133.97,7.46413643]
[1767878253768,8.18505589,134.02,133.99,2.28514289]
[1767878253971,8.18505589,134.02,133.98,2.28514289]
[1767878254547,8.18505589,134.02,133.98,3.56810047]
[1767878255571,8.18505589,134.02,133.99,3.56810047]
[1767878256768,8.18505589,134.02,133.97,7.46413643]
[1767878256947,8.18505589,134.02,133.98,3.56810047]
[1767878258664,8.18165382,134.03,133.99,3.56810047]
[1767878259058,8.18165382,134.03,134.0,3.56810047]
[1767878259256,8.18165382,134.03,133.99,3.56810047]
[1767878259465,0.7205598,134.02,133.99,3.56810047]
[1767878259661,7.46109402,134.03,133.99,3.56810047]
[1767878259662,0.7205598,134.03,133.99,3.56810047]
[1767878260063,0.7205598,134.03,133.98,7.46363777]
[1767878260272,0.7205598,134.04,134.01,3.56810047]
[1767878260461,0.7205598,134.07,134.03,3.56810047]
[1767878260769,7.45825228,134.08,134.05,3.56810047]
[1767878260770,0.7205598,134.08,134.05,3.56810047]
[1767878262783,8.17881486,134.08,134.04,3.56810047]
[1767878263555,0.7205598,134.07,134.04,3.56810047]
[1767878264765,8.17881486,134.08,134.04,3.56810047]
[1767878265575,0.7205598,134.07,134.04,3.56810047]
[1767878266078,8.17881486,134.08,134.04,3.56810047]
[1767878266675,8.17881486,134.08,134.05,3.56810047]
[1767878267856,8.17881486,134.08,134.04,3.56810047]
[1767878269791,0.7205598,134.08,134.04,11.02847325]
[1767878269958,0.7205598,134.08,134.05,3.56810047]
[1767878270160,8.17880067,134.08,134.05,3.56810047]
[1767878271066,0.7205598,134.09,134.06,3.56810047]
[1767878272083,8.17827614,134.09,134.03,26.11310347]
[1767878272280,0.7205598,134.08,134.06,3.56810047]
[1767878273160,0.7205598,134.08,134.05,3.56810047]
[1767878273580,0.7205598,134.08,134.06,3.56810047]
[1767878273879,0.7205598,134.08,134.05,7.45987765]
[1767878274081,0.7205598,134.08,134.06,3.56810047]
[1767878277275,0.7205598,134.09,134.07,3.56810047]
[1767878277481,0.7205598,134.08,134.06,3.56810047]
[1767878277674,8.17791444,134.1,134.06,3.56810047]
[1767878277874,0.7205598,134.09,134.06,3.56810047]
[1767878278989,0.7205598,134.08,134.04,11.0281077]
[1767878279167,0.7205598,134.08,134.04,3.56810047]
[1767878279686,11.02580447,134.09,134.01,21.08183451]
[1767878279687,0.7205598,134.06,134.01,21.08183451]
[1767878279886,0.7205598,134.06,134.01,24.64993498]
[1767878280066,0.7205598,134.06,134.01,3.56810047]
[1767878281074,0.7205598,134.05,134.01,3.56810047]
[1767878281282,0.7205598,134.05,134.01,11.03020244]
[1767878281589,0.7205598,134.05,134.02,3.56810047]
[1767878281769,0.7205598,134.07,134.04,3.56810047]
[1767878283275,0.67268506,134.06,134.03,3.56810047]
[1767878285313,0.67268506,134.06,134.03,11.02882401]
[1767878285597,0.67268506,134.07,134.04,3.56810047]
[1767878285907,0.67268506,134.09,134.06,3.56810047]
[1767878286670,0.67268506,134.09,134.05,3.56810047]
[1767878288979,0.67268506,134.09,134.05,11.02788264]
[1767878289174,0.67268506,134.1,134.07,3.56810047]
[1767878289387,0.67268506,134.1,134.08,3.56810047]
[1767878290594,0.67268506,134.1,134.07,3.56810047]
[1767878291404,0.67268506,134.1,134.08,3.56810047]
[1767878294204,0.87356689,134.11,134.09,3.56810047]
[1767878295899,0.2,134.13,134.1,3.56810047]
[1767878296084,0.67356689,134.14,134.12,3.56810047]
[1767878296290,0.67356689,134.14,134.11,3.56810047]
[1767878297007,0.67356689,134.14,134.11,3.50810048]
[1767878297202,0.67356689,134.13,134.1,13.62]
[1767878297896,0.67356689,134.13,134.1,17.18810047]
[1767878298593,0.67356689,134.13,134.11,3.56810047]
[1767878298794,101.0,134.17,134.12,3.56810047]
[1767878298795,0.67356689,134.14,134.12,3.56810047]
[1767878299584,0.67356689,134.16,134.13,3.56810047]
[1767878299786,0.67356689,134.16,134.12,3.56810047]
[1767878300606,0.67356689,134.16,134.11,7.4563133]
[1767878300807,0.67356689,134.15,134.11,7.4563133]
[1767878300982,0.67356689,134.15,134.12,3.56810047]
[1767878301384,0.67356689,134.15,134.12,11.02407743]
[1767878301982,0.67356689,134.15,134.13,3.56810047]
[1767878305488,0.67356689,134.15,134.12,11.02407743]
[1767878305826,0.67356689,134.15,134.12,7.45597696]
[1767878306020,0.67356689,134.14,134.1,7.45687526]
[1767878306313,0.67356689,134.14,134.11,3.56810047]
[1767878306494,0.67356689,134.14,134.12,3.56810047]
[1767878307792,0.67356689,134.14,134.11,7.45652471]
[1767878307994,0.67356689,134.14,134.12,3.56810047]
[1767878309514,0.67356689,134.16,134.13,3.56810047]
[1767878309731,0.67356689,134.16,134.14,3.56810047]
[1767878310618,0.67356689,134.18,134.15,3.56810047]
[1767878312227,0.67356689,134.17,134.11,13.62]
[1767878312399,0.67356689,134.17,134.12,3.56810047]
[1767878313509,0.67356689,134.17,134.12,11.0241045]
[1767878314225,0.69609286,134.16,134.12,11.0241045]
[1767878314601,0.69609286,134.16,134.12,9.73494804]
[1767878315810,0.69609286,134.16,134.13,2.27894401]
[1767878316012,0.69609286,134.16,134.14,2.27894401]
[1767878316218,0.69609286,134.17,134.15,2.27894401]
[1767878317529,0.69609286,134.17,134.13,26.09403185]
[1767878317530,0.69609286,134.17,134.16,2.27894401]
[1767878317720,0.69609286,134.17,134.15,2.27894401]
[1767878317920,7.45221822,134.19,134.15,2.27894401]
[1767878318122,0.69609286,134.19,134.17,2.27894401]
[1767878319730,0.69609286,134.19,134.17,2.22435933]
[1767878320729,0.69609286,134.19,134.16,2.27894401]
[1767878320921,0.69609286,134.18,134.15,2.27894401]
[1767878321727,0.69609286,134.18,134.14,15.89894401]
[1767878321925,0.69609286,134.18,134.15,2.27894401]
[1767878322124,0.69609286,134.18,134.15,9.7332804]
[1767878322329,0.69609286,134.18,134.16,2.27894401]
[1767878322633,0.69609286,134.18,134.15,2.27894401]
[1767878323012,0.69609286,134.17,134.13,21.07500208]
[1767878323331,0.69609286,134.17,134.12,18.63904555]
[1767878323332,0.69609286,134.17,134.14,2.27894401]
[1767878325128,0.69609286,134.17,134.15,2.27894401]
[1767878326020,0.69609286,134.17,134.14,2.27894401]
[1767878326620,0.69609286,134.17,134.13,9.73438171]
[1767878327133,2.27894401,134.19,134.13,9.73438171]
[1767878327134,0.69609286,134.16,134.13,9.73438171]
[1767878328042,0.69609286,134.16,134.14,2.27894401]
[1767878331425,7.45298423,134.18,134.12,13.62]
[1767878331426,0.69609286,134.19,134.16,7.45378652]
[1767878331628,7.65082372,134.22,134.19,0.69609286]
[1767878331828,0.2,134.22,134.21,2.27894401]
[1767878332334,0.2,134.22,134.2,2.97503687]
[1767878335237,0.2,134.23,134.2,2.77503687]
[1767878335434,0.2,134.23,134.21,2.27894401]
[1767878335743,0.69609286,134.23,134.2,0.49609286]
[1767878335919,0.89609286,134.24,134.21,2.27894401]
[1767878336118,0.89609286,134.24,134.2,0.49609286]
[1767878336320,0.89609286,134.24,134.21,2.27894401]
[1767878336834,8.34558079,134.24,134.21,2.27894401]
[1767878337925,0.89609286,134.24,134.21,2.27894401]
[1767878339325,0.69609286,134.23,134.21,2.27894401]
[1767878339736,0.69609286,134.23,134.2,0.49609286]
[1767878339941,0.69609286,134.23,134.21,2.27894401]
[1767878341444,0.69609286,134.23,134.19,2.27894401]
[1767878341445,0.69609286,134.22,134.19,2.27894401]
[1767878341948,0.69609286,134.22,134.18,2.27894401]
[1767878342126,0.66228088,134.21,134.15,7.95012784]
[1767878342322,0.66228088,134.21,134.17,2.77503687]
[1767878342523,0.66228088,134.21,134.18,2.27894401]
[1767878343125,0.66228088,134.21,134.18,2.77503687]
[1767878343641,8.1134392,134.21,134.18,2.77503687]
[1767878343836,8.1134392,134.21,134.18,0.49609286]
[1767878344036,0.66228088,134.2,134.17,2.27894401]
[1767878344548,8.13646282,134.21,134.17,2.77503687]
[1767878345339,0.6853045,134.2,134.17,2.77503687]